Cogmind - Beta 13 @@@ ROGUE MODE // 2024.03.20 @ 19:20:06 Player: Oldman Pu Result: Destroyed by G-47 Trooper with Particle Gun Performance ------------- Evolutions (1) 500 Regions Visited (6) 1200 Robots Destroyed (79) 395 Value Destroyed (2026) 2026 Prototype IDs (7) 140 Alien Tech Used (0) 0 Bonus (-44) -44 TOTAL SCORE: 4217 Bonus ------- High Alert Combat Kills 11 Follower Combat Kills 66 Friendly Fire -121 Cogmind --------- Core Integrity 0/400 Matter 203/300 Energy 265/265 System Corruption 5% Temperature Cool (9) Movement Rolling (115) Ox2 Location -8/Mines Parts ------- > --- POWER (1) -------- Reinforced Ion Engine > --- PROPULSION (2) --- Wheel Armored Wheel > --- UTILITY (4) ------ Improved Heat Sink High-capacity Storage Unit Improved Targeting Computer Improved Light Armor Plating > --- WEAPON (2) ------- Heavy Assault Rifle Improved Light Cannon > --- INVENTORY (20) --- Cooled Ion Engine Cooled Ion Engine Light Nuclear Core Wheel High-capacity Matter Pod (200) Advanced Weight Redist. System Advanced Weight Redist. System Experimental Sensor Array Improved Targeting Computer Light Armor Plating Light Armor Plating Hardened Light Armor Plating Particle Gun Light Cannon Improved Light Cannon Peak State ------------ > --- POWER ------------ Cooled Ion Engine > --- PROPULSION ------- Wheel Armored Wheel > --- UTILITY ---------- High-capacity Storage Unit Light Armor Plating Decoy Drone Bay > --- WEAPON ----------- Improved Light Cannon Improved Light Cannon > --- INVENTORY -------- Reinforced Ion Engine Cooled Ion Engine Cooled Ion Engine Wheel Wheel Improved Heat Sink Advanced Weight Redist. System Advanced Weight Redist. System Improved Targeting Computer Improved Targeting Computer Improved Targeting Computer Light Armor Plating Hardened Light Armor Plating Improved Light Armor Plating Heavy Assault Rifle Light Cannon Improved Light Cannon Improved Light Cannon [Rating: 29] Favorites ----------- Power Ion Engine Engine Ion Engine Propulsion Wheel Leg Aluminum Leg Wheel Wheel Utility Large Storage Unit Device Advanced Weight Redist. System Storage Large Storage Unit Processor Improved Targeting Computer Protection Improved Light Armor Plating Weapon Improved Light Cannon Ballistic Gun Assault Rifle Ballistic Cannon Improved Light Cannon Build | -11 -10 -10 -9 -9 -9 -8 ------- Run | Yrd Mat Min Mat Min Exi Min Slots Evolved 2 | . . . 2 . . . Power . | . . . . . . . Propulsion . | . . . . . . . Utility 2 | . . . 2 . . . Weapon . | . . . . . . . Parts Attached 75 | 6 17 7 29 11 . 5 Power 12 | 1 2 1 7 1 . . Engine 12 | 1 2 1 7 1 . . Core . | . . . . . . . Reactor . | . . . . . . . Propulsion 19 | 2 8 2 6 . . 1 Treads . | . . . . . . . Leg 2 | . 2 . . . . . Wheel 17 | 2 6 2 6 . . 1 Hover . | . . . . . . . Flight . | . . . . . . . Utility 27 | 1 2 3 10 10 . 1 Device 5 | . . . 1 3 . 1 Storage 7 | 1 1 1 2 2 . . Processor 5 | . 1 . 2 2 . . Hackware . | . . . . . . . Protection 10 | . . 2 5 3 . . Artifact . | . . . . . . . Weapon 17 | 2 5 1 6 . . 3 Energy Gun . | . . . . . . . Energy Cannon . | . . . . . . . Ballistic Gun 11 | 2 5 1 2 . . 1 Ballistic Cannon 6 | . . . 4 . . 2 Launcher . | . . . . . . . Special Weapon . | . . . . . . . Impact Weapon . | . . . . . . . Slashing Weapon . | . . . . . . . Piercing Weapon . | . . . . . . . Special Melee Weapon . | . . . . . . . Unidentified Prototypes 3 | . . . 1 2 . . Parts Lost 19 | . 5 . 12 . . 2 Power 2 | . . . 2 . . . Propulsion 8 | . 4 . 3 . . 1 Utility 5 | . 1 . 4 . . . Weapon 4 | . . . 3 . . 1 Highest Loss Streak 8 | . 3 . 8 . . 2 To Critical Strikes . | . . . . . . . Average Slot Usage (%) 97 | . 94 100 96 99 100 99 Engine 11 | . 14 14 10 11 11 11 Wheel 23 | . 24 28 21 22 22 21 Device 2 | . . . 3 3 . 10 Storage 16 | . 14 15 17 19 22 11 Processor 6 | . 11 . 3 7 11 11 Protection 11 | . . 12 17 13 11 11 Ballistic Gun 12 | . 27 28 7 . . 9 Ballistic Cannon 11 | . . . 14 22 22 12 Naked Turns . | . . . . . . . Heaviest Build 65 | 14 29 33 60 65 65 62 Greatest Support 32 | 20 32 32 31 31 22 22 Greatest Overweight (x) 9 | 2 9 1 4 2 2 5 Average Overweight (x) 1 | . . . 1 1 2 2 Largest Inventory Capacity 20 | 8 15 15 20 20 20 20 Average Capacity 16 | 7 13 15 15 20 20 20 Most Carried 20 | 1 15 15 15 20 16 16 Average Carried 13 | . 9 14 13 16 16 14 Final Capacity 20 | 8 15 15 20 20 20 20 Final Carried 16 | 1 14 15 15 16 16 15 Class Distribution -------------------- 79% | Mutant 20% | Scavenger-Mutant Dominant Class ---------------- Mutant | -10/Materials Mutant | -10/Mines Mutant | -9/Materials Mutant | -9/Mines Mutant | -9/Exiles Scavenger-Mutant | -8/Mines Resources | -11 -10 -10 -9 -9 -9 -8 ----------- Run | Yrd Mat Min Mat Min Exi Min Matter Collected 2567 | 240 640 400 878 130 48 231 Remotely . | . . . . . . . Salvage Created 2568 | . 753 63 1369 168 41 174 Parts 167 | . 53 3 90 11 1 9 Haulers Intercepted 6 | . 2 . 4 . . . Recyclers Shooed 1 | . . 1 . . . . Parts Field Recycled . | . . . . . . . Retrieved Matter . | . . . . . . . Parts Self-Destructed . | . . . . . . . Prevented . | . . . . . . . Kills | -11 -10 -10 -9 -9 -9 -8 ------- Run | Yrd Mat Min Mat Min Exi Min Combat Hostiles Destroyed 63 | . 16 4 30 5 . 8 Guns 39 | . 16 4 16 . . 3 Cannons 24 | . . . 14 5 . 5 Classes Destroyed 11 | . 6 1 3 1 . . Worker 1 | . 1 . . . . . Hauler 6 | . 2 . 4 . . . Recycler 3 | . 2 . 1 . . . Operator 1 | . . . 1 . . . Watcher 5 | . 2 . 3 . . . Swarmer 18 | . 6 3 6 . . 3 Grunt 30 | . 10 . 13 3 . 4 Brawler 3 | . . . . 2 . 1 Duelist 2 | . . . 2 . . . Sentry 10 | . . . 10 . . . Assembled 1 | . . 1 . . . . Best Kill Streak 5 | . 5 4 4 5 . 3 Combat Bots Only 5 | . 5 4 4 5 . 3 Max Kills in Single Turn 1 | . 1 1 1 1 . 1 Gunslinging . | . . . . . . . Exploded . | . . . . . . . Melee . | . . . . . . . Uniques/NPCs Destroyed . | . . . . . . . Combat | -11 -10 -10 -9 -9 -9 -8 -------- Run | Yrd Mat Min Mat Min Exi Min Hostile Shots Fired 340 | . 92 28 140 10 . 70 Missed 82 | . 29 11 23 2 . 17 Damage Taken 3144 | . 697 174 1381 137 . 755 Core 648 | . 219 18 210 54 . 147 Absorbed by Shields . | . . . . . . . Redirected to Shielding 19 | . . . 7 12 . . Regen/Repaired (Parts) 285 | . 111 . 174 . . . Core Remaining (%) 52 | 100 . 5 . . . . Volleys Fired 225 | . 70 17 96 9 2 31 Largest 2 | . 2 2 2 2 2 2 Hottest 78 | . 40 40 78 78 78 78 Shots Fired 444 | . 139 34 189 18 6 58 Gun 287 | . 139 34 98 . . 16 Cannon 157 | . . . 91 18 6 42 Launcher . | . . . . . . . Special . | . . . . . . . Kinetic 444 | . 139 34 189 18 6 58 Thermal . | . . . . . . . Explosive . | . . . . . . . Electromagnetic . | . . . . . . . Robot Hit Streak 11 | . 11 7 11 6 3 6 Robot Miss Streak 4 | . 3 3 4 2 3 3 Penetration Max . | . . . . . . . Secondary Targets 8 | . 4 1 3 . . . Max Gunslinging Chain 1 | . 1 1 1 . . . Shots Hit Robots 277 | . 88 18 123 12 3 33 Core Hits 116 | . 36 8 53 5 2 12 Critical Kills . | . . . . . . . Critical Parts Destroyed 2 | . 1 . 1 . . . Critical Strikes 8 | . 1 . 4 2 . 1 Destroy 2 | . 1 . 1 . . . Blast 6 | . . . 3 2 . 1 Melee Attacks . | . . . . . . . Impact . | . . . . . . . Slashing . | . . . . . . . Piercing . | . . . . . . . Sneak Attacks . | . . . . . . . Combat Hostiles . | . . . . . . . Follow-up Attacks . | . . . . . . . Damage Inflicted 4571 | . 1130 236 2190 300 55 660 Guns 2558 | . 1130 236 1033 . . 159 Cannons 1958 | . . . 1157 245 55 501 Explosions . | . . . . . . . Melee . | . . . . . . . Ramming 55 | . . . . 55 . . Kinetic 4516 | . 1130 236 2190 245 55 660 Thermal . | . . . . . . . Explosive . | . . . . . . . Electromagnetic . | . . . . . . . Impact . | . . . . . . . Slashing . | . . . . . . . Piercing . | . . . . . . . Highest Corruption 5 | . 1 1 2 2 2 5 Average Corruption 1 | . 1 1 2 2 2 4 Corruption Purged . | . . . . . . . Corruption Blocked . | . . . . . . . Effects 45 | . 8 2 5 14 5 11 Message Errors 10 | . 2 1 1 4 1 1 Matter Fused 6 | . . . . 3 . 3 Heat Flow Errors 10 | . 2 . 3 3 1 1 Energy Discharges 7 | . 1 1 1 2 . 2 Parts Fused 1 | . 1 . . . . . Data Loss (minor) 5 | . 1 . . 2 . 2 Data Loss (major) 1 | . . . . . 1 . Misfires 3 | . . . . . 2 1 Weapon Failures 2 | . 1 . . . . 1 Overload Shots . | . . . . . . . Overflow Damage 7 | . . . . 5 . 2 Projectiles 2 | . . . . . . 2 Explosions . | . . . . . . . Melee 5 | . . . . 5 . . Knockbacks 17 | . . . 9 2 . 6 Impact . | . . . . . . . Kinetic 16 | . . . 8 2 . 6 Secondary 1 | . . . 1 . . . Self-Inflicted Damage 27 | . . . . 27 . . Shots . | . . . . . . . Rammed 5 | . . . . 5 . . Targets Rammed 5 | . . . . 5 . . Kicked . | . . . . . . . Crushed . | . . . . . . . Highest Temperature 462 | . 197 20 162 236 107 462 Average Temperature 68 | . 40 11 39 69 32 198 Received Heat Transfer 1137 | . 309 69 411 42 . 306 Effects 2 | . . . . . . 2 Shutdowns 1 | . . . . . . 1 Short Circuit 1 | . . . . . . 1 Siege Activations . | . . . . . . . Robots Corrupted . | . . . . . . . Combat Hostiles . | . . . . . . . Parts Fried . | . . . . . . . Impact Corruptions 1 | . . . . 1 . . Robots Melted . | . . . . . . . Combat Hostiles . | . . . . . . . Parts Melted . | . . . . . . . Heat Transferred . | . . . . . . . Parts Sabotaged . | . . . . . . . Parts Stolen . | . . . . . . . Parts Stripped . | . . . . . . . Power Chain Reactions . | . . . . . . . Alert | -11 -10 -10 -9 -9 -9 -8 ------- Run | Yrd Mat Min Mat Min Exi Min Peak Influence 444 | . 199 61 444 277 . 186 Initial 156 | . . 24 23 156 . . Average 154 | . 76 32 263 175 . 73 Maximum Alert Level 2 | . . . 2 1 . . Low Security (%) 63 | 100 100 100 21 51 . 100 Level 1 32 | . . . 67 48 . . Level 2 3 | . . . 10 . . . Level 3 . | . . . . . . . Level 4 . | . . . . . . . Level 5 . | . . . . . . . High Security . | . . . . . . . Max Security . | . . . . . . . Squads Dispatched 9 | . 4 . 5 . . . Investigation 5 | . 2 . 3 . . . Extermination . | . . . . . . . Reinforcement 4 | . 2 . 2 . . . Assault . | . . . . . . . Garrison . | . . . . . . . Intercept . | . . . . . . . Searches Triggered . | . . . . . . . Construction Impeded . | . . . . . . . Haulers Reinforced . | . . . . . . . Active Scanning Responses . | . . . . . . . Cargo Convoy Interrupts . | . . . . . . . Stealth | -11 -10 -10 -9 -9 -9 -8 --------- Run | Yrd Mat Min Mat Min Exi Min Distress Signals 4 | . 1 . 3 . . . Communications Jammed . | . . . . . . . Distress Signals . | . . . . . . . Times Spotted 90 | . 21 13 39 5 . 12 Peak Tracking Total 7 | . 5 3 7 3 . 4 Tactical Retreats 3 | . . 2 . . . 1 Traps | -11 -10 -10 -9 -9 -9 -8 ------- Run | Yrd Mat Min Mat Min Exi Min Traps Triggered 6 | . 2 . 4 . . . Indirectly . | . . . . . . . Trap Hack Attempts . | . . . . . . . Triggered . | . . . . . . . Disarmed . | . . . . . . . Reprogrammed . | . . . . . . . Reused . | . . . . . . . Traps Extracted . | . . . . . . . Installed . | . . . . . . . Triggered . | . . . . . . . Machines | -11 -10 -10 -9 -9 -9 -8 ---------- Run | Yrd Mat Min Mat Min Exi Min Machines Disabled 1 | . . . 1 . . . Max in Single Turn 1 | . . . 1 . . . Machines Repaired . | . . . . . . . Machines Dismantled . | . . . . . . . Machines Sabotaged . | . . . . . . . Overloaded Fab Kills . | . . . . . . . Hacking | -11 -10 -10 -9 -9 -9 -8 --------- Run | Yrd Mat Min Mat Min Exi Min Machines Accessed 24 | . 7 . 13 1 3 . Terminals 13 | . 4 . 9 . . . Fabricators . | . . . . . . . Repair Stations 2 | . 1 . 1 . . . Recycling Units 3 | . 2 . 1 . . . Scanalyzers 2 | . . . 2 . . . Garrison Access . | . . . . . . . Total Hacks 81 | . 17 . 37 1 26 . Successful 60 | . 15 . 18 1 26 . Failed 21 | . 2 . 19 . . . Catastrophic 4 | . . . 4 . . . Database Lockouts . | . . . . . . . Manual 1 | . . . . . 1 . Terminals 36 | . 11 . 25 . . . Fabricators . | . . . . . . . Repair Stations 8 | . 4 . 4 . . . Recycling Units 5 | . 2 . 3 . . . Scanalyzers 5 | . . . 5 . . . Garrison Access . | . . . . . . . Terminal Hacks 47 | . 9 . 11 1 26 . Record 29 | . 2 . 1 . 26 . Prototype ID Bank 3 | . 1 . 2 . . . Open Door 1 | . . . . 1 . . Branch Access Points 2 | . 1 . 1 . . . Emergency Access Points 3 | . . . 3 . . . Locate Traps 4 | . 3 . 1 . . . Dispatch Records 2 | . 1 . 1 . . . Maintenance Status 2 | . 1 . 1 . . . Registered Components 1 | . . . 1 . . . Fabricator Hacks . | . . . . . . . Repair Station Hacks 8 | . 4 . 4 . . . Scan Component 4 | . 2 . 2 . . . Repair 4 | . 2 . 2 . . . Recycling Unit Hacks 3 | . 2 . 1 . . . Report Inventory 3 | . 2 . 1 . . . Scanalyzer 2 | . . . 2 . . . Insert Component 1 | . . . 1 . . . Analyze 1 | . . . 1 . . . Garrison Access Hacks . | . . . . . . . Unauthorized Hacks . | . . . . . . . Terminals . | . . . . . . . Fabricators . | . . . . . . . Repair Stations . | . . . . . . . Recycling Units . | . . . . . . . Scanalyzers . | . . . . . . . Garrison Access . | . . . . . . . Data Cores Recovered 1 | . . . 1 . . . Used 1 | . . . 1 . . . Hacking Detections 16 | . 5 . 11 . . . Full Trace Events 5 | . 2 . 3 . . . Feedback Events . | . . . . . . . Feedback Blocked . | . . . . . . . Robot Schematics Acquired . | . . . . . . . Robots Built . | . . . . . . . Authchips . | . . . . . . . Time . | . . . . . . . Total Robot Build Rating . | . . . . . . . Part Schematics Acquired 1 | . . . 1 . . . Parts Built . | . . . . . . . Authchips . | . . . . . . . Time . | . . . . . . . Total Part Build Rating . | . . . . . . . Parts Repaired 4 | . 2 . 2 . . . Time 122 | . 52 . 70 . . . Parts Recycled . | . . . . . . . Recycled Matter . | . . . . . . . Retrieved Matter . | . . . . . . . Retrieved Components . | . . . . . . . Parts Scanalyzed 1 | . . . 1 . . . Part Schematics Acquired 1 | . . . 1 . . . Parts Damaged . | . . . . . . . Bothacking | -11 -10 -10 -9 -9 -9 -8 ------------ Run | Yrd Mat Min Mat Min Exi Min Used RIF Installer . | . . . . . . . Robots Hacked . | . . . . . . . Non-combat . | . . . . . . . Combat . | . . . . . . . Robot Hacks Applied . | . . . . . . . Relay Couplers Released . | . . . . . . . Fabnet Peak Effective % . | . . . . . . . Robots Rewired . | . . . . . . . Allies Hacked . | . . . . . . . Hacks Repelled . | . . . . . . . Allies | -11 -10 -10 -9 -9 -9 -8 -------- Run | Yrd Mat Min Mat Min Exi Min Total Allies 5 | . . 5 . . . . Largest Group 3 | . . 3 3 . . . Highest-Rated Group 40 | . . 40 40 . . . Highest-Rated Ally 31 | . . 31 16 . . . Total Orders . | . . . . . . . Ally Attacks 76 | . . 53 23 . . . Total Damage 808 | . . 545 263 . . . Kills 12 | . . 11 1 . . . Allies Corrupted . | . . . . . . . Allies Melted . | . . . . . . . Intel | -11 -10 -10 -9 -9 -9 -8 ------- Run | Yrd Mat Min Mat Min Exi Min Robot Analysis Total . | . . . . . . . Derelict Logs Recovered 3 | . . 1 . 2 . . Drone Launches . | . . . . . . . Drone Recoveries . | . . . . . . . Exploration | -11 -10 -10 -9 -9 -9 -8 ------------- Run | Yrd Mat Min Mat Min Exi Min Turns Passed 5483 | 46 1153 610 1793 775 595 511 Spaces Moved 3884 | 43 768 447 1164 600 513 349 Core 19 | 10 9 . . . . . Treads . | . . . . . . . Legs 18 | . 18 . . . . . Wheels 3847 | 33 741 447 1164 600 513 349 Hover . | . . . . . . . Flight . | . . . . . . . Fastest Speed 50 | 50 80 100 80 100 115 115 Average Speed 106 | 84 102 104 102 111 115 115 Slowest Speed 500 | 150 500 105 140 115 115 165 Overloaded Moves . | . . . . . . . Propulsion Burnouts . | . . . . . . . Robots Hopped . | . . . . . . . Cave-ins Triggered . | . . . . . . . Exploration Rate (%) 74 | 3 99 93 93 77 91 64 Regions Visited 6 Branch Regions 4 Pre-discovered Areas . | . . . . . . . Known Exits Taken 2 | . 1 . 1 . . . Unknown Exits Taken 4 | 1 . 1 . 1 1 . Scrap Searched 3 | . . 1 . 1 . 1 Spaces Dug . | . . . . . . . Terrain Destroyed 9 | . . . 5 1 1 2 Melee . | . . . . . . . Projectile 9 | . . . 5 1 1 2 AOE . | . . . . . . . Terrain Rammed . | . . . . . . . Walls Destroyed . | . . . . . . . Machines Disabled . | . . . . . . . Actions | -11 -10 -10 -9 -9 -9 -8 --------- Run | Yrd Mat Min Mat Min Exi Min Total 4774 | 49 991 560 1572 687 514 401 Wait 502 | . 117 74 248 50 . 13 Move 3878 | 42 767 446 1163 599 512 349 Hop . | . . . . . . . Pick Up 55 | 1 16 7 23 6 . 2 Fast Attach 18 | 6 7 . 5 . . . Attach 27 | . 3 1 15 5 . 3 Detach 1 | . . . . 1 . . Swap 30 | . 7 6 9 6 . 2 Drop 33 | . 4 9 13 6 . 1 Fire 225 | . 70 17 96 9 2 31 Melee . | . . . . . . . Ram 5 | . . . . 5 . . Kick . | . . . . . . . Crush . | . . . . . . . Escape Stasis . | . . . . . . . Rewire . | . . . . . . . Trap . | . . . . . . . Miscellaneous . | . . . . . . . Route ------- -11/Scrapyard -10/Materials (discovered 5 exits: *Mat x3 / *Min x2) -10/Mines (discovered 2 exits: *Mat x2) -9/Materials (discovered 4 exits: [*Mat x2] / *Min x2) -9/Mines (discovered 3 exits: [*Mat x2] / *Exi) -9/Exiles (discovered 2 exits: [*Min x2]) -8/Mines (discovered 1 exit: [*Mat]) History --------- Turn | Location | Event 13 | -11/Scrapyard | Discovered new exit (range 16) 47 | -11/Scrapyard | Entered Materials 149 | -10/Materials | Identified exit to Mines 151 | -10/Materials | Discovered new exit (range 14) 312 | -10/Materials | Build established: Mutant 347 | -10/Materials | Core integrity fell below 50% 398 | -10/Materials | Discovered new exit (range 5) 435 | -10/Materials | Repaired Assault Rifle 462 | -10/Materials | Repaired Assault Rifle 721 | -10/Materials | Discovered new exit (range 16) 992 | -10/Materials | Core integrity fell below 20% 1038 | -10/Materials | Lost 3 parts (2n1u) 1200 | -10/Materials | Entered Mines 1201 | -10/Mines | Assembled infested the area 1393 | -10/Mines | Discovered new exit (range 6) 1421 | -10/Mines | Assisted by bots powering up and referring to "LRC-V3" 1747 | -10/Mines | Discovered new exit (range 10) 1810 | -10/Mines | Entered Materials 1810 | -9/Materials | Accompanied by 3 allies 1810 | -9/Materials | Evolved 2 slots: Utility x2 1811 | -9/Materials | Identified exit to Mines 2024 | -9/Materials | Lost 3 allies 2336 | -9/Materials | Build established: Scavenger-Mutant 2489 | -9/Materials | Lost 8 parts (1p2n2u3w) 2579 | -9/Materials | Core integrity fell below 50% 2645 | -9/Materials | Discovered new exit (range 14) 2835 | -9/Materials | Build established: Mutant 3228 | -9/Materials | Discovered new exit (range 8) 3415 | -9/Materials | Repaired Hrd. Light Armor Plating 3453 | -9/Materials | Repaired Imp. Light Armor Plating 3603 | -9/Materials | Entered Mines 3639 | -9/Mines | Learned Materials garrison access intel 3761 | -9/Mines | Learned Materials trap positions 3825 | -9/Mines | Found the Drone Emporium 3834 | -9/Mines | Found Prototype Device 3836 | -9/Mines | Identified Decoy Drone Bay 3877 | -9/Mines | Deemed a non-threat by the Exiles lab entrance 3877 | -9/Mines | Discovered new exit (range 5) 3941 | -9/Mines | Found a damaged Exp. Sensor Array with a note attached 3944 | -9/Mines | Found Prototype Device 3945 | -9/Mines | Identified Exp. Sensor Array 3957 | -9/Mines | Discovered new exit (range 8) 3975 | -9/Mines | Received a Rocket Launcher from a helpful Derelict 4129 | -9/Mines | Discovered new exit (range 14) 4378 | -9/Mines | Entered Exiles 4378 | -9/Exiles | Found Exiles lab destroyed 4397 | -9/Exiles | Discovered new exit (range 15) 4962 | -9/Exiles | Discovered new exit (range 10) 4973 | -9/Exiles | Entered Mines 4999 | -8/Mines | Core integrity fell below 20% 5249 | -8/Mines | Discovered new exit (range 11) 5314 | -8/Mines | Build established: Scavenger-Mutant 5484 | -8/Mines | Destroyed by G-47 Trooper with Particle Gun Last Messages --------------- 05178_ T-07 Excavator is excavating. 05192_ System corrupted: Energy discharge (-66). 05196_ T-07 Excavator is excavating. 05249_ EXIT=FOUND 05267_ System corrupted: Hvy. Assault Rifle jammed. 05276_ S-10 Pest destroyed. 05285_ Acquired 2 matter. 05295_ Acquired 15 matter. 05302_ Acquired 6 matter. 05308_ Acquired 10 matter. 05317_ 5S>FQ1N4OCPZRIXN 05472_ System corrupted: Matter fused (-5). 05474_ Critical hit (Burn: +37). 05476_ G-50 Soldier destroyed. 05480_ K-01 Serf collects debris. 05480_ G-47 Trooper destroyed. 05482_ K-01 Serf collects debris. Map ----- +----------------------------------------------------+ | ??# #?## #????# ## #?????????? | | ??# ##?# #??## #?????????? | | ??# ### ### ## #?????????? | | ??# ## ##### ##????????? | | ??## ##### ######??### ###??????? | | ???# #### #?######## ##?????? | | ???# #??# #?????? | | ???# ##?# ##### #?????? | | ???# ####### ### ###?# ##????? | | ???# #?????# #?## ##???? | | ???#####?????## #??## ##### | | ??????????????### #### #???## | | ????????????????# #??# #????## | | ????????????????# #??# #?????## #### | | ????????????????# #??# ######### ##??# | | ????????????????# #??# ## ####???# | | ????????????????# #??######## ## #??????# | | ????????????????# #????????## ## #??????# | | ????????????????# #???????## # #??????# | | ????????????????# #??????## ##?????# | | ????????????????# #??????# #?????# | | ????????????????# #?????# """ #?????# | | ???# #####k#????# """ ##?????# | | ????# %!#????# """ ##??????# | | ??????# #####g#????## #??????## | | ????????????????#@#?????### #??????# | | ????????????????# #???????## ??????# | | ????????????????#=#????????## ?????## | | ?????????????####%#??????????# ??????# | | ?????????????# %#?????????????? ??????? | | ???????? #????????????? ?????? | | ???????# ????????????????????? | | ???????## ??????????????????? | | ????????## ########?????????????????? | | ?????????# ####?????????????????????????? | | ?????????# ?????????????????????????????? | | ?????????# ??????????????????????????????? | | ?????????#???????????????????????????????? | | ?????????????????????????????????????????? | | ?????????????????????????????????????????? | | ?????????????????????????????????????????? | | ?????????????????????????????????????????? | | ?????????????????????????????????????????? | | ?????????????????????????????????????????? | | ?????????????????????????????????????????? | | ?????????????????????????????????????????? | | ?????????????????????????????????????????? | | ?????????????????????????????????????????? | | ?????????????????????????????????????????? | | ?????????????????????????????????????????? | +----------------------------------------------------+ Best States ------------- Heat Dissipation 42 Energy Generation 14 Energy Capacity 280 Matter Stores 500 Matter Capacity 500 Sight Range 16 Terrain Scan Density 10 Additional Mass Support 9 Armor Coverage 300 Core Shielding 20 Evasion (%) 44 Targeting Accuracy 6 Item Schematics ----------------- Hrd. Light Armor Plating | -9/Materials | Scanalyzed Robot Schematics ------------------ None Fabricated ------------ Nothing Alien Tech Used ----------------- None Achievements -------------- None Challenges ------------ None Game ------ Seed MiniDefenseGravjet Manual? 0 Play Time 00:53:33 Cumulative 180.5 hours Start 2024.03.20 @ 18:05:28 End 2024.03.20 @ 19:20:06 Sessions 3 Manual Loads 0 Difficulty Rogue Special Mode None Game No. 125 Rogue 113 Adventurer 12 Explorer 0 Win Type - Total 1 Types 1/0/0/0/0/0/0/0/0 Lore% 25 Gallery% 41 Achievement% 31 Wizard Run 0 Options --------- Layout 1 ASCII 0 Keyboard 0 Movement Mouse Keybinds 0 Fullscreen 1 Font 32/SmallcapsGlow Map View 77x35 Zoom Use 0% Tactical HUD 1 Map Filters NONE Filters NONE Steam 1 RUN: 5f6395d9-4ba1-4a59-8a57-bd4690633fff